lending/lending_fUSD_20250131
["ID","MTS","AMOUNT","RATE_DAILY","PERIOD"]
[351121245,1738343452943,-9339.98358114,0.0001719,2]
[351121246,1738343452952,-6540.1519026,0.0001719,2]
[351121247,1738343452962,-165.62007078,0.000172,2]
[351121248,1738343452985,-65.37992922,0.000172,2]
[351121249,1738343452998,-319.42007078,0.000172,2]
[351121250,1738343453009,-46.57992922,0.000172,2]
[351121251,1738343453019,-746.0,0.000172,2]
[351121252,1738343453029,-236.85007078,0.0001722,2]
[351121253,1738343453040,-763.14992922,0.0001722,2]
[351121254,1738343453050,-1247.31651326,0.00017245,2]
[351121255,1738343453059,-1143.46430252,0.0001725,2]
[351121256,1738343453071,-981.32569748,0.0001725,2]
[351121257,1738343453080,-1471.30395172,0.0001725,2]
[351121258,1738343453664,-500.0,0.00016574,2]
[351121259,1738343453675,-500.0,0.00016711,2]
[351121260,1738343453684,-500.0,0.00016848,2]
[351121261,1738343453694,-500.0,0.00016985,2]
[351121262,1738343453704,-751.28,0.00016986,2]
[351121263,1738343453714,-500.0,0.00017122,2]
[351121264,1738343453723,-751.28,0.00017123,2]
[351121265,1738343453733,-3076.39604828,0.0001725,2]
[351121266,1738343453742,-757.9,0.0001725,2]
[351121267,1738343453751,-656.78,0.0001725,2]
[351121268,1738343453761,-374.06992553,0.0001725,2]
[351121269,1738343453772,-190.78007447,0.0001725,2]
[351121270,1738343453782,-558.11,0.0001725,2]
[351121271,1738343453791,-177.19635859,0.0001725,2]
[351121272,1738343453946,-322.80364141,0.0001725,2]
[351121273,1738343453956,-159.27103484,0.0001725,2]
[351121275,1738343660255,23184.0,0.0002101,120]
[351121278,1738344462169,1675.22761498,0.0001,2]
[351121279,1738344482868,8324.77238502,0.0001,2]
[351121280,1738344482890,10000.0,0.0001,2]
[351121281,1738344482911,10000.0,0.0001,2]
[351121282,1738344482932,10000.0,0.0001,2]
[351121283,1738344482953,10000.0,0.0001,2]
[351121284,1738344482976,10000.0,0.0001,2]
[351121285,1738344482999,10000.0,0.0001,2]
[351121286,1738344483022,10000.0,0.0001,2]
[351121287,1738344483044,10000.0,0.0001,2]
[351121288,1738344483073,10000.0,0.0001,2]
[351121289,1738344483095,10000.0,0.0001,2]
[351121290,1738344483116,10000.0,0.0001,2]
[351121291,1738344483138,9645.62581142,0.0001,2]
[351121292,1738344617706,-419.333715,0.000108,2]
[351121293,1738344617729,-7465.0,0.00010962,2]
[351121294,1738344617752,-150.0,0.00011244,2]
[351121295,1738344617774,-300.0,0.00011687,2]
[351121296,1738344617795,-1665.666285,0.00011688,2]
[351121297,1738344619010,-10000.0,0.00011688,2]
[351121298,1738344619969,-122.74446342,0.00011688,2]
[351121299,1738344619991,-9877.25553658,0.00011688,2]
[351121300,1738344620912,-10000.0,0.00011688,2]
[351121301,1738344622785,-6843.12704017,0.00011688,2]
[351121302,1738344622808,-324.66,0.00011733,2]
[351121303,1738344622829,-206.67575907,0.0001178,2]
[351121304,1738344622850,-150.0,0.00011879,2]
[351121305,1738344622873,-150.0,0.0001188,2]
[351121306,1738344622895,-2325.53720076,0.000119,2]
[351121307,1738344627938,-356.0,0.000119,2]
[351121312,1738344632073,-2769.79183613,0.000119,2]
[351121314,1738344632084,-422.8937085,0.000119,2]
[351121315,1738344632135,-945.139286,0.000119,2]
[351121316,1738344632146,-184.18739159,0.000119,2]
[351121317,1738344632155,-989.02090171,0.000119,2]
[351121318,1738344632167,-72483.99419452,0.000119,2]
[351121319,1738344632178,-659.42092748,0.000119,2]
[351121320,1738344632188,-15360.81352393,0.000119,2]
[351121321,1738344632198,-2465.32744437,0.000119,2]
[351121322,1738344632208,-6819.36203139,0.00011936,2]
[351121323,1738344632217,-6819.36203139,0.00011971,2]
[351121324,1738344632227,-316.16369153,0.00011973,2]
[351121325,1738344632237,-161.23882124,0.00011973,2]
[351121326,1738344632246,-151.17200942,0.00011973,2]
[351121327,1738344632255,-151.23883218,0.00011973,2]
[351121328,1738344632266,-500.0,0.00011973,2]
[351121329,1738344632277,-225.40133376,0.0001199,2]
[351121330,1738344632288,-225.40133376,0.0001199,2]
[351121331,1738344632299,-225.40133376,0.0001199,2]
[351121332,1738344632309,-150.0,0.00011997,2]
[351121333,1738344632320,-232.51006007,0.00011999,2]
[351121334,1738344632330,-250.25423026,0.00011999,2]
[351121335,1738344632341,-370.78604399,0.00011999,2]
[351121336,1738344632351,-162.75704204,0.00011999,2]
[351121337,1738344632363,-2279.14186262,0.00011999,2]
[351121338,1738344632374,-821554.4319196,0.00012,2]
[351121339,1738344632403,-386.79726953,0.00012,2]
[351121340,1738344632415,-2851.42155941,0.00012,2]
[351121341,1738344632426,-276.0,0.00012,2]
[351121342,1738344632439,-32734.25746574,0.00012,2]
[351121343,1738344632452,-5036.63307204,0.00012,2]
[351121344,1738344632469,-99890.0,0.00012,2]
[351121345,1738344632481,-881.85133044,0.00012,2]
[351121346,1738344635687,-10283.37680665,0.00012,2]
[351121347,1738344635698,-1791.19941019,0.00012,2]
[351121348,1738344635709,-56705.4536515,0.00012,2]
[351121349,1738344635791,-98104.52287805,0.00012,2]
[351121350,1738344635803,-71118.29005,0.00012,2]
[351121622,1738344637942,-1381.84,0.00012,2]
[351121624,1738344637953,-1291.29000006,0.00012,2]
[351121629,1738344637987,-1561121.0920693,0.00012,2]
[351121631,1738344637996,-3518.71844235,0.00012,2]
[351121633,1738344638005,-10552091.44062666,0.00012,2]
[351121635,1738344638015,-759.93240354,0.00012,2]
[351121637,1738344638024,-6819.36203139,0.00012007,2]
[351121639,1738344638033,-6819.36203139,0.00012043,2]
[351121641,1738344638042,-6819.36203139,0.00012078,2]
[351121643,1738344638051,-6819.36203139,0.00012114,2]
[351121645,1738344638060,-6819.36203139,0.0001215,2]
[351121647,1738344638069,-6819.36203139,0.00012185,2]
[351121649,1738344638078,-6819.36203139,0.00012221,2]
[351121651,1738344638086,-500.0,0.00012521,2]
[351121653,1738344638095,-420.0,0.00012834,2]
[351121655,1738344638105,-904.57,0.00013498,2]
[351121657,1738344638114,-926.11,0.000137,2]
[351121659,1738344638124,-926.11,0.000137,2]
[351121661,1738344638133,-180.0,0.00014093,2]
[351121663,1738344638142,-3020.67414715,0.000141,2]
[351121665,1738344638151,-169.07,0.00014316,2]
[351121667,1738344638160,-23900.0,0.00014316,2]
[351121669,1738344638169,-2714.08200685,0.000149,2]
[351121671,1738344638178,-2714.08200677,0.000149,2]
[351121673,1738344638187,-2714.08200677,0.000149,2]
[351121675,1738344638197,-2714.08200677,0.000149,2]
[351121677,1738344638206,-2714.08200677,0.000149,2]
[351121679,1738344638215,-2714.08200677,0.000149,2]
[351121681,1738344638224,-2714.08200677,0.000149,2]
[351121683,1738344638233,-2714.08200677,0.000149,2]
[351121685,1738344638242,-250.0,0.00014946,2]
[351121687,1738344638251,-6268.82495789,0.00015,10]
[351121689,1738344638261,-13501.27977824,0.00015,2]
[351121691,1738344638270,-14905.5500265,0.00015,2]
[351121693,1738344638279,-2714.08200677,0.00015107,2]
[351121695,1738344638291,-2714.08200677,0.00015383,2]
[351121696,1738344638300,-659.42092747,0.000154,2]
[351121698,1738344638309,-15360.81352392,0.000154,2]
[351121700,1738344638318,-2465.32744435,0.000154,2]
[351121702,1738344638328,-846.35,0.00015508,2]
[351121704,1738344638338,-250.0,0.00015534,2]
[351121706,1738344638347,-2714.08200677,0.00015659,2]
[351121708,1738344638356,-1000.0,0.00015703,2]
[351121710,1738344638366,-904.57,0.00015762,2]
[351121712,1738344638375,-6919.73553785,0.00015806,2]
[351121714,1738344638384,-2751.0,0.00015874,2]
[351121716,1738344638393,-291.96,0.00015874,2]
[351121718,1738344638402,-2714.08200677,0.00015934,2]
[351121720,1738344638411,-1500.0,0.00016002,2]
[351121722,1738344638420,-307.27,0.0001606,2]
[351121724,1738344638429,-1852.42,0.00016067,2]
[351121726,1738344638438,-438.32,0.00016067,2]
[351121728,1738344638447,-200.0,0.00016067,2]
[351121730,1738344638458,-2021.0,0.00016129,2]
[351121732,1738344638468,-171.98,0.00016156,2]
[351121734,1738344638477,-2714.08200677,0.0001621,2]
[351121736,1738344638486,-7975.3696,0.00016238,2]
[351121738,1738344638496,-53798.4775,0.00016338,2]
[351121740,1738344638505,-1000.0,0.00016338,2]
[351121742,1738344638515,-500.0,0.00016338,2]
[351121744,1738344638524,-10408.6191,0.00016338,2]
[351121746,1738344638534,-380.5802,0.00016338,2]
[351121748,1738344638543,-215.0377,0.00016338,2]
[351121750,1738344638553,-804.223,0.00016338,2]
[351121752,1738344638562,-14044.9725,0.00016338,2]
[351121754,1738344638571,-29252.7008,0.00016338,2]
[351121756,1738344638581,-5000.0,0.00016338,2]
[351121758,1738344638591,-812813.54998312,0.0001638,2]
[351121760,1738344638600,-500.0,0.00016438,2]
[351121762,1738344638610,-501.03925351,0.00016438,2]
[351121764,1738344638619,-500.0,0.00016438,2]
[351121766,1738344638628,-500.0,0.00016438,2]
[351121768,1738344638638,-500.0,0.00016438,2]
[351121770,1738344638647,-572.3374004,0.00016438,2]
[351121772,1738344638657,-532.5383127,0.00016438,2]
[351121774,1738344638666,-494.84326508,0.00016438,2]
[351121776,1738344638675,-500.0,0.00016438,2]
[351121778,1738344638684,-500.0,0.00016438,2]
[351121780,1738344638693,-500.0,0.00016438,2]
[351121782,1738344638706,-500.0,0.00016438,2]
[351121784,1738344638717,-500.0,0.00016438,2]
[351121787,1738344638727,-500.0,0.00016438,2]
[351121789,1738344638736,-504.533281,0.00016438,2]
[351121791,1738344638746,-500.0,0.00016438,2]
[351121793,1738344638755,-500.0,0.00016438,2]
[351121795,1738344638764,-517.02148985,0.00016438,2]
[351121797,1738344638774,-500.0,0.00016438,2]
[351121799,1738344638783,-500.0,0.00016438,2]
[351121801,1738344638792,-500.0,0.00016438,2]
[351121803,1738344638801,-500.0,0.00016438,2]
[351121805,1738344638811,-500.0,0.00016438,2]
[351121807,1738344638820,-505.88887589,0.00016438,2]
[351121809,1738344638829,-500.0,0.00016438,2]
[351121811,1738344638839,-500.0,0.00016438,2]
[351121812,1738344638849,-500.0,0.00016438,2]
[351121814,1738344638858,-213.48169578,0.00016438,2]
[351121816,1738344638867,-500.0,0.00016438,2]
[351121818,1738344638876,-500.0,0.00016438,2]
[351121820,1738344638885,-500.0,0.00016438,2]
[351121821,1738344638893,-500.0,0.00016438,2]
[351121822,1738344638902,-500.0,0.00016438,2]
[351121823,1738344638911,-500.0,0.00016438,2]
[351121824,1738344638920,-500.0,0.00016438,2]
[351121825,1738344638929,-500.0,0.00016438,2]
[351121826,1738344638938,-500.0,0.00016438,2]
[351121827,1738344638947,-500.0,0.00016438,2]
[351121828,1738344638957,-500.0,0.00016438,2]
[351121829,1738344638968,-500.0,0.00016438,2]
[351121830,1738344638977,-500.0,0.00016438,2]
[351121832,1738344638987,-500.0,0.00016438,2]
[351121834,1738344638998,-500.0,0.00016438,2]
[351121836,1738344639007,-500.0,0.00016438,2]
[351121838,1738344639016,-275.34112611,0.00016438,2]
[351121840,1738344639025,-1000.0,0.00016438,30]
[351121842,1738344639034,-500.0,0.00016438,2]
[351121843,1738344639043,-500.0,0.00016438,2]
[351121846,1738344639052,-500.0,0.00016438,2]
[351121847,1738344639062,-500.0,0.00016438,2]
[351121849,1738344639071,-500.0,0.00016438,2]
[351121851,1738344639082,-500.0,0.00016438,2]
[351121853,1738344639091,-500.0,0.00016438,2]
[351121855,1738344639100,-500.0,0.00016438,2]
[351121857,1738344639109,-786.32,0.00016438,2]
[351121859,1738344639118,-500.0,0.00016438,2]
[351121861,1738344639127,-500.0,0.00016438,2]
[351121863,1738344639137,-715.01,0.00016438,2]
[351121865,1738344639146,-1044.66,0.00016438,2]
[351121867,1738344639155,-500.0,0.00016438,2]
[351121869,1738344639164,-500.0,0.00016438,2]
[351121871,1738344639174,-535.84,0.00016438,2]
[351121874,1738344639183,-500.0,0.00016438,2]
[351121876,1738344639193,-500.0,0.00016438,2]
[351121877,1738344639204,-500.0,0.00016438,2]
[351121880,1738344639216,-500.0,0.00016438,2]
[351121881,1738344639225,-510.09309352,0.00016438,2]
[351121883,1738344639234,-500.0,0.00016438,2]
[351121886,1738344639245,-500.0,0.00016438,2]
[351121888,1738344639254,-507.87279648,0.00016438,2]
[351121890,1738344639263,-500.0,0.00016438,2]
[351121892,1738344639272,-500.0,0.00016438,2]
[351121894,1738344639283,-500.0,0.00016438,2]
[351121896,1738344639293,-500.0,0.00016438,2]
[351121898,1738344639302,-784.94,0.00016438,2]
[351121900,1738344639311,-500.0,0.00016438,2]
[351121902,1738344639320,-500.0,0.00016438,2]
[351121904,1738344639330,-500.0,0.00016438,2]
[351121906,1738344639339,-500.0,0.00016438,2]
[351121908,1738344639348,-500.0,0.00016438,2]
[351121910,1738344639357,-500.0,0.00016438,2]
[351121912,1738344639368,-500.0,0.00016438,2]
[351121914,1738344639378,-500.0,0.00016438,2]
[351121916,1738344639388,-564.28,0.00016438,2]
[351121917,1738344639397,-500.0,0.00016438,2]
[351121920,1738344639406,-500.0,0.00016438,2]
[351121922,1738344639416,-500.0,0.00016438,2]
[351121923,1738344639425,-860.3,0.00016438,2]
[351121926,1738344639435,-505.56,0.00016438,2]
[351121928,1738344639444,-507.59232478,0.00016438,2]
[351121929,1738344639454,-697.26,0.00016438,2]
[351121931,1738344639468,-382.1473328,0.00016438,2]
[351121934,1738344639477,-693.81,0.00016438,2]
[351121936,1738344639486,-500.0,0.00016438,2]
[351121938,1738344639495,-500.0,0.00016438,2]
[351121940,1738344639504,-500.0,0.00016438,2]
[351121942,1738344639514,-500.0,0.00016438,2]
[351121944,1738344639523,-500.0,0.00016438,2]
[351121946,1738344639532,-500.0,0.00016438,2]
[351121948,1738344639541,-500.0,0.00016438,2]
[351121950,1738344639550,-500.0,0.00016438,2]
[351121952,1738344639560,-561.04,0.00016438,2]
[351121954,1738344639569,-500.0,0.00016438,2]
[351121956,1738344639579,-500.0,0.00016438,2]
[351121958,1738344639588,-500.0,0.00016438,2]
[351121960,1738344639598,-500.0,0.00016438,2]
[351121962,1738344639609,-500.0,0.00016438,2]
[351121963,1738344639619,-500.0,0.00016438,2]
[351121965,1738344639628,-500.0,0.00016438,2]
[351121967,1738344639637,-500.0,0.00016438,2]
[351121969,1738344639646,-500.0,0.00016438,2]
[351121971,1738344639657,-371.982495,0.00016438,2]
[351121973,1738344639667,-500.0,0.00016438,2]
[351121975,1738344639675,-500.0,0.00016438,2]
[351121977,1738344639685,-500.0,0.00016438,2]
[351121979,1738344639694,-500.0,0.00016438,2]
[351121981,1738344639703,-500.0,0.00016438,2]
[351121983,1738344639718,-500.0,0.00016438,2]
[351121985,1738344639727,-500.0,0.00016438,2]
[351121987,1738344639736,-500.0,0.00016438,2]
[351121989,1738344639745,-500.0,0.00016438,2]
[351121991,1738344639755,-500.0,0.00016438,2]
[351121993,1738344639764,-477.6366143,0.00016438,2]
[351121995,1738344639773,-500.0,0.00016438,2]
[351121997,1738344639782,-500.0,0.00016438,2]
[351121999,1738344639791,-500.0,0.00016438,2]
[351122001,1738344639801,-507.33283432,0.00016438,2]
[351122003,1738344639810,-592.06,0.00016438,2]
[351122005,1738344639819,-332.619358,0.00016438,2]
[351122007,1738344639829,-500.0,0.00016438,2]
[351122009,1738344639838,-500.0,0.00016438,2]
[351122011,1738344639847,-500.0,0.00016438,2]
[351122013,1738344639856,-500.0,0.00016438,2]
[351122015,1738344639866,-500.0,0.00016438,2]
[351122017,1738344639875,-500.0,0.00016438,2]
[351122019,1738344639884,-500.0,0.00016438,2]
[351122022,1738344639893,-539.55,0.00016438,2]
[351122024,1738344639902,-500.0,0.00016438,2]
[351122027,1738344639911,-676.46,0.00016438,2]
[351122029,1738344639920,-759.94,0.00016438,2]
[351122031,1738344639930,-500.0,0.00016438,2]
[351122033,1738344639939,-500.0,0.00016438,2]
[351122035,1738344639948,-500.0,0.00016438,2]
[351122037,1738344639957,-500.0,0.00016438,2]
[351122039,1738344639969,-500.0,0.00016438,2]
[351122041,1738344639979,-500.0,0.00016438,2]
[351122043,1738344639988,-500.0,0.00016438,2]
[351122045,1738344639997,-267.26420666,0.00016438,2]
[351122047,1738344640006,-500.0,0.00016438,2]
[351122049,1738344640014,-533.58,0.00016438,2]
[351122051,1738344640023,-500.0,0.00016438,2]
[351122053,1738344640032,-500.0,0.00016438,2]
[351122055,1738344640042,-500.0,0.00016438,2]
[351122057,1738344640051,-500.0,0.00016438,2]
[351122059,1738344640060,-500.0,0.00016438,2]
[351122061,1738344640069,-500.0,0.00016438,2]
[351122064,1738344640078,-500.0,0.00016438,2]
[351122066,1738344640087,-655.18,0.00016438,2]
[351122068,1738344640096,-500.0,0.00016438,2]
[351122070,1738344640106,-500.0,0.00016438,2]
[351122072,1738344640115,-500.0,0.00016438,2]
[351122074,1738344640124,-500.0,0.00016438,2]
[351122076,1738344640133,-500.0,0.00016438,2]
[351122078,1738344640142,-585.36,0.00016438,2]
[351122080,1738344640151,-500.0,0.00016438,2]
[351122082,1738344640161,-500.0,0.00016438,2]
[351122084,1738344640170,-500.0,0.00016438,2]
[351122086,1738344640179,-649.13,0.00016438,2]
[351122088,1738344640188,-500.0,0.00016438,2]
[351122090,1738344640197,-500.0,0.00016438,2]
[351122092,1738344640206,-500.0,0.00016438,2]
[351122094,1738344640217,-500.0,0.00016438,2]
[351122096,1738344640226,-500.0,0.00016438,2]
[351122098,1738344640235,-696.31,0.00016438,2]
[351122100,1738344640244,-500.0,0.00016438,2]
[351122102,1738344640254,-156.312002,0.00016438,2]
[351122104,1738344640264,-500.0,0.00016438,2]
[351122106,1738344640273,-500.0,0.00016438,2]
[351122107,1738344640286,-500.0,0.00016438,2]
[351122110,1738344640295,-500.0,0.00016438,2]
[351122112,1738344640305,-500.0,0.00016438,2]
[351122114,1738344640314,-644.3,0.00016438,2]
[351122115,1738344640323,-500.0,0.00016438,2]
[351122117,1738344640332,-166.492289,0.00016438,2]
[351122119,1738344640342,-500.0,0.00016438,2]
[351122121,1738344640351,-500.0,0.00016438,2]
[351122124,1738344640361,-502.3722446,0.00016438,2]
[351122125,1738344640370,-500.0,0.00016438,2]
[351122127,1738344640379,-500.0,0.00016438,2]
[351122129,1738344640388,-500.0,0.00016438,2]
[351122131,1738344640397,-156.584798,0.00016438,2]
[351122133,1738344640406,-500.0,0.00016438,2]
[351122135,1738344640415,-220.1982826,0.00016438,2]
[351122137,1738344640425,-688.25,0.00016438,2]
[351122139,1738344640434,-513.03,0.00016438,2]
[351122141,1738344640443,-500.0,0.00016438,2]
[351122143,1738344640452,-788.15,0.00016438,2]
[351122145,1738344640461,-500.0,0.00016438,2]
[351122147,1738344640472,-500.0,0.00016438,2]
[351122149,1738344640481,-500.0,0.00016438,2]
[351122151,1738344640490,-500.0,0.00016438,2]
[351122153,1738344640499,-500.0,0.00016438,2]
[351122155,1738344640508,-574.15,0.00016438,2]
[351122157,1738344640517,-500.0,0.00016438,2]
[351122159,1738344640527,-497.26747614,0.00016438,2]
[351122161,1738344640536,-1535.23,0.00016438,2]
[351122163,1738344640546,-500.0,0.00016438,2]
[351122165,1738344640555,-500.0,0.00016438,2]
[351122167,1738344640568,-500.0,0.00016438,2]
[351122169,1738344640577,-1637.44,0.00016438,2]
[351122171,1738344640586,-1262.62,0.00016438,2]
[351122173,1738344640595,-500.0,0.00016438,2]
[351122175,1738344640605,-500.0,0.00016438,2]
[351122177,1738344640614,-793.65,0.00016438,2]
[351122179,1738344640623,-507.68050373,0.00016438,2]
[351122181,1738344640632,-199.647092,0.00016438,2]
[351122183,1738344640641,-500.0,0.00016438,2]
[351122185,1738344640650,-577.47,0.00016438,2]
[351122187,1738344640660,-4428.25,0.00016438,2]
[351122189,1738344640669,-910.87,0.00016438,2]
[351122191,1738344640678,-500.0,0.00016438,2]
[351122193,1738344640687,-500.0,0.00016438,2]
[351122195,1738344640696,-180.59527059,0.00016438,2]
[351122197,1738344640705,-655.41,0.00016438,2]
[351122199,1738344640714,-500.0,0.00016438,2]
[351122201,1738344640723,-500.0,0.00016438,2]
[351122203,1738344640732,-570.64,0.00016438,2]
[351122205,1738344640741,-500.0,0.00016438,2]
[351122207,1738344640751,-584.60255684,0.00016438,2]
[351122209,1738344640760,-500.0,0.00016438,2]
[351122211,1738344640769,-549.65730926,0.00016438,2]
[351122213,1738344640778,-500.0,0.00016438,2]
[351122215,1738344640787,-580.49,0.00016438,2]
[351122217,1738344640796,-523.67,0.00016438,2]
[351122219,1738344640805,-500.0,0.00016438,2]
[351122221,1738344640814,-506.21877436,0.00016438,2]
[351122223,1738344640823,-500.0,0.00016438,2]
[351122225,1738344640832,-1017.32,0.00016438,2]
[351122227,1738344640841,-500.0,0.00016438,2]
[351122229,1738344640851,-2356.36,0.00016438,2]
[351122231,1738344640859,-570.77,0.00016438,2]
[351122233,1738344640868,-500.0,0.00016438,2]
[351122235,1738344640878,-1390.63,0.00016438,2]
[351122237,1738344640887,-500.0,0.00016438,2]
[351122239,1738344640896,-882.45,0.00016438,2]
[351122241,1738344640906,-590.98,0.00016438,2]
[351122243,1738344640914,-500.0,0.00016438,2]
[351122244,1738344640923,-500.0,0.00016438,2]
[351122246,1738344640932,-500.0,0.00016438,2]
[351122248,1738344640942,-500.0,0.00016438,2]
[351122251,1738344640951,-500.0,0.00016438,2]
[351122253,1738344640961,-500.0,0.00016438,2]
[351122255,1738344640970,-500.0,0.00016438,2]
[351122256,1738344640980,-1525.92,0.00016438,2]
[351122259,1738344640989,-500.0,0.00016438,2]
[351122261,1738344640998,-500.0,0.00016438,2]
[351122263,1738344641007,-500.0,0.00016438,2]
[351122264,1738344641016,-500.0,0.00016438,2]
[351122266,1738344641026,-500.0,0.00016438,2]
[351122268,1738344641035,-586.96,0.00016438,2]
[351122270,1738344641044,-948.32,0.00016438,2]
[351122272,1738344641053,-500.0,0.00016438,2]
[351122274,1738344641062,-500.0,0.00016438,2]
[351122275,1738344641071,-500.0,0.00016438,2]
[351122276,1738344641080,-500.0,0.00016438,2]
[351122277,1738344641089,-500.0,0.00016438,2]
[351122278,1738344641098,-745.44,0.00016438,2]
[351122279,1738344641107,-1049.18,0.00016438,2]
[351122280,1738344641116,-500.0,0.00016438,2]
[351122281,1738344641125,-504.18097968,0.00016438,2]
[351122282,1738344641135,-500.0,0.00016438,2]
[351122283,1738344641144,-500.0,0.00016438,2]
[351122285,1738344641153,-642.48,0.00016438,2]
[351122287,1738344641162,-500.0,0.00016438,2]
[351122289,1738344641171,-567.31,0.00016438,2]
[351122291,1738344641181,-500.0,0.00016438,2]
[351122293,1738344641190,-299.07957434,0.00016438,2]
[351122295,1738344641200,-500.0,0.00016438,2]
[351122297,1738344641210,-595.69,0.00016438,2]
[351122299,1738344641219,-500.0,0.00016438,2]
[351122301,1738344641229,-500.0,0.00016438,2]
[351122303,1738344641238,-1207.42,0.00016438,2]
[351122305,1738344641246,-500.0,0.00016438,2]
[351122307,1738344641256,-500.0,0.00016438,2]
[351122309,1738344641265,-641.29,0.00016438,2]
[351122311,1738344641274,-758.6,0.00016438,2]
[351122313,1738344641285,-1597.46,0.00016438,2]
[351122315,1738344641295,-732.3,0.00016438,2]
[351122317,1738344641306,-500.0,0.00016438,2]
[351122319,1738344641315,-500.0,0.00016438,2]
[351122321,1738344641324,-517.85,0.00016438,2]
[351122323,1738344641334,-711.74,0.00016438,2]
[351122325,1738344641343,-500.0,0.00016438,2]
[351122327,1738344641352,-756.07,0.00016438,2]
[351122329,1738344641363,-823.02,0.00016438,2]
[351122331,1738344641372,-500.0,0.00016438,2]
[351122333,1738344641381,-4438.02,0.00016438,2]
[351122335,1738344641390,-530.71578433,0.00016438,2]
[351122337,1738344641400,-500.0,0.00016438,2]
[351122339,1738344641408,-500.0,0.00016438,2]
[351122341,1738344641418,-500.0,0.00016438,2]
[351122343,1738344641427,-337.9175224,0.00016438,2]
[351122345,1738344641436,-1280.17,0.00016438,2]
[351122346,1738344641447,-1098.35,0.00016438,2]
[351122348,1738344641455,-153.7888286,0.00016438,2]
[351122350,1738344641466,-500.0,0.00016438,2]
[351122352,1738344641475,-2455.28,0.00016438,2]
[351122354,1738344641484,-836.72,0.00016438,2]
[351122356,1738344641493,-500.0,0.00016438,2]
[351122358,1738344641502,-1516.94,0.00016438,2]
[351122360,1738344641511,-921.49,0.00016438,2]
[351122362,1738344641520,-4271.91,0.00016438,2]
[351122364,1738344641530,-749.22,0.00016438,2]
[351122366,1738344641539,-566.7,0.00016438,2]
[351122368,1738344641548,-500.0,0.00016438,2]
[351122370,1738344641557,-2243.02,0.00016438,2]
[351122372,1738344641566,-500.0,0.00016438,2]
[351122374,1738344641576,-500.0,0.00016438,2]
[351122376,1738344641585,-570.71,0.00016438,2]
[351122378,1738344641594,-3229.19,0.00016438,2]
[351122380,1738344641603,-1866.82,0.00016438,2]
[351122382,1738344641611,-553.28,0.00016438,2]
[351122384,1738344641621,-563.64,0.00016438,2]
[351122386,1738344641630,-486.97656681,0.00016438,2]
[351122388,1738344641639,-500.0,0.00016438,2]
[351122390,1738344641647,-583.26,0.00016438,2]
[351122392,1738344641657,-507.54,0.00016438,2]
[351122394,1738344641666,-2938.57,0.00016438,2]
[351122396,1738344641676,-500.0,0.00016438,2]
[351122398,1738344641686,-1521.39,0.00016438,2]
[351122400,1738344641697,-500.0,0.00016438,2]
[351122402,1738344641706,-1369.87,0.00016438,2]
[351122404,1738344641717,-500.0,0.00016438,2]
[351122406,1738344641726,-2767.32,0.00016438,2]